[Event "Titled Tuesday Blitz September 13 Early 2022"]
[White "Shandrygin, Nikita"]
[Black "Bok, Benjamin"]
[WhiteFideId "24198668"]
[BlackFideId "1017063"]
[WhiteElo "2522"]
[BlackElo "2940"]
[Result "0-1"]
[Round "01"]
[TimeControl "180+1"]
[Date "2022.09.13"]
[WhiteClock "0:00:11"]
[BlackClock "0:00:05"]

1. e4 {[%clk 0:02:58]}  c5 {[%clk 0:02:59]} 2. Nf3 {[%clk 0:02:58]}  d6 {[%clk 0:02:58]} 3. d4 {[%clk 0:02:58]}  cxd4 {[%clk 0:02:59]} 4. Nxd4 {[%clk 0:02:59]}  Nf6 {[%clk 0:02:59]} 5. Nc3 {[%clk 0:02:59]}  a6 {[%clk 0:02:58]} 6. f3 {[%clk 0:02:57]}  e5 {[%clk 0:02:57]} 7. Nb3 {[%clk 0:02:56]}  Be6 {[%clk 0:02:57]} 8. Be3 {[%clk 0:02:53]}  h5 {[%clk 0:02:46]} 9. Qd2 {[%clk 0:02:52]}  Nbd7 {[%clk 0:02:44]} 10. Nd5 {[%clk 0:02:27]}  Bxd5 {[%clk 0:02:42]} 11. exd5 {[%clk 0:02:28]}  g6 {[%clk 0:02:41]} 12. Be2 {[%clk 0:02:16]}  Bg7 {[%clk 0:02:37]} 13. O-O {[%clk 0:02:16]}  b6 {[%clk 0:02:35]} 14. c4 {[%clk 0:02:04]}  O-O {[%clk 0:02:31]} 15. Qb4 {[%clk 0:01:36]}  Qc7 {[%clk 0:02:28]} 16. Rfd1 {[%clk 0:01:32]}  Rfe8 {[%clk 0:02:28]} 17. Rac1 {[%clk 0:01:30]}  a5 {[%clk 0:02:26]} 18. Qa4 {[%clk 0:01:26]}  Rac8 {[%clk 0:02:11]} 19. Nd2 {[%clk 0:01:22]}  e4 {[%clk 0:02:08]} 20. f4 {[%clk 0:01:05]}  Nc5 {[%clk 0:02:07]} 21. Qb5 {[%clk 0:00:55]}  Ng4 {[%clk 0:01:52]} 22. Bxg4 {[%clk 0:00:51]}  hxg4 {[%clk 0:01:53]} 23. b3 {[%clk 0:00:41]}  Qd8 {[%clk 0:01:18]} 24. Nf1 {[%clk 0:00:40]}  f5 {[%clk 0:01:16]} 25. Rc2 {[%clk 0:00:36]}  Bh6 {[%clk 0:00:51]} 26. Ng3 {[%clk 0:00:35]}  Rb8 {[%clk 0:00:44]} 27. Ne2 {[%clk 0:00:35]}  Nd3 {[%clk 0:00:41]} 28. Rf1 {[%clk 0:00:35]}  Qf6 {[%clk 0:00:40]} 29. Nc1 {[%clk 0:00:26]}  Nc5 {[%clk 0:00:28]} 30. Ne2 {[%clk 0:00:25]}  Kh7 {[%clk 0:00:20]} 31. Nd4 {[%clk 0:00:26]}  Nd3 {[%clk 0:00:20]} 32. Ne6 {[%clk 0:00:24]}  Re7 {[%clk 0:00:18]} 33. Qc6 {[%clk 0:00:20]}  Nc5 {[%clk 0:00:14]} 34. Bd4 {[%clk 0:00:18]}  Qf7 {[%clk 0:00:12]} 35. Bxc5 {[%clk 0:00:16]}  dxc5 {[%clk 0:00:12]} 36. Rd1 {[%clk 0:00:14]}  Qe8 {[%clk 0:00:11]} 37. Qxe8 {[%clk 0:00:14]}  Rexe8 {[%clk 0:00:12]} 38. g3 {[%clk 0:00:14]}  Kg8 {[%clk 0:00:12]} 39. Nc7 {[%clk 0:00:14]}  Red8 {[%clk 0:00:11]} 40. Nb5 {[%clk 0:00:14]}  Kf7 {[%clk 0:00:11]} 41. Kg2 {[%clk 0:00:14]}  Bg7 {[%clk 0:00:11]} 42. Re2 {[%clk 0:00:14]}  Bf6 {[%clk 0:00:11]} 43. h3 {[%clk 0:00:14]}  gxh3+ {[%clk 0:00:11]} 44. Kxh3 {[%clk 0:00:15]}  Rd7 {[%clk 0:00:12]} 45. Kg2 {[%clk 0:00:16]}  Rh8 {[%clk 0:00:11]} 46. Rh1 {[%clk 0:00:16]}  Rxh1 {[%clk 0:00:12]} 47. Kxh1 {[%clk 0:00:17]}  Rd8 {[%clk 0:00:12]} 48. a4 {[%clk 0:00:17]}  g5 {[%clk 0:00:11]} 49. fxg5 {[%clk 0:00:17]}  Bxg5 {[%clk 0:00:12]} 50. Rh2 {[%clk 0:00:17]}  Kg6 {[%clk 0:00:12]} 51. Kg2 {[%clk 0:00:18]}  Bf6 {[%clk 0:00:12]} 52. Kf2 {[%clk 0:00:18]}  Be5 {[%clk 0:00:12]} 53. Rh4 {[%clk 0:00:16]}  Rf8 {[%clk 0:00:11]} 54. Na7 {[%clk 0:00:14]}  Re8 {[%clk 0:00:10]} 55. Nc6 {[%clk 0:00:13]}  e3+ {[%clk 0:00:11]} 56. Ke2 {[%clk 0:00:12]}  Bxg3 {[%clk 0:00:11]} 57. Rh1 {[%clk 0:00:13]}  f4 {[%clk 0:00:11]} 58. d6 {[%clk 0:00:10]}  f3+ {[%clk 0:00:11]} 59. Kxf3 {[%clk 0:00:11]}  Bxd6 {[%clk 0:00:12]} 60. Re1 {[%clk 0:00:11]}  Rf8+ {[%clk 0:00:05]} 61. Kxe3 {[%clk 0:00:11]}  Bf4+ {[%clk 0:00:04]} 62. Kd3 {[%clk 0:00:11]}  Bg5 {[%clk 0:00:04]} 63. Re6+ {[%clk 0:00:11]}  Kf7 {[%clk 0:00:03]} 64. Rd6 {[%clk 0:00:11]}  Bf4 {[%clk 0:00:03]} 65. Rd7+ {[%clk 0:00:12]}  Ke6 {[%clk 0:00:03]} 66. Rd5 {[%clk 0:00:13]}  Rc8 {[%clk 0:00:02]} 67. Nd8+ {[%clk 0:00:14]}  Ke7 {[%clk 0:00:02]} 68. Ke4 {[%clk 0:00:11]}  Bc7 {[%clk 0:00:01]} 69. Nb7 {[%clk 0:00:11]}  Rb8 {[%clk 0:00:01]} 70. Nxc5 {[%clk 0:00:09]}  bxc5 {[%clk 0:00:02]} 71. Rxc5 {[%clk 0:00:10]}  Kd7 {[%clk 0:00:03]} 72. Rb5 {[%clk 0:00:10]}  Re8+ {[%clk 0:00:02]} 73. Kd5 {[%clk 0:00:10]}  Re3 {[%clk 0:00:03]} 74. c5 {[%clk 0:00:10]}  Re5+ {[%clk 0:00:03]} 75. Kd4 {[%clk 0:00:10]}  Re1 {[%clk 0:00:02]} 76. Kd5 {[%clk 0:00:10]}  Rd1+ {[%clk 0:00:02]} 77. Kc4 {[%clk 0:00:11]}  Kc6 {[%clk 0:00:03]} 78. b4 {[%clk 0:00:12]}  Rc1+ {[%clk 0:00:03]} 79. Kb3 {[%clk 0:00:12]}  Rb1+ {[%clk 0:00:03]} 80. Kc4 {[%clk 0:00:12]}  axb4 {[%clk 0:00:04]} 81. Rxb4 {[%clk 0:00:13]}  Rc1+ {[%clk 0:00:04]} 82. Kb3 {[%clk 0:00:14]}  Rh1 {[%clk 0:00:04]} 83. Rc4 {[%clk 0:00:13]}  Rh3+ {[%clk 0:00:04]} 84. Rc3 {[%clk 0:00:14]}  Rh1 {[%clk 0:00:04]} 85. Kc4 {[%clk 0:00:14]}  Ba5 {[%clk 0:00:04]} 86. Rf3 {[%clk 0:00:14]}  Rh4+ {[%clk 0:00:04]} 87. Kb3 {[%clk 0:00:14]}  Kxc5 {[%clk 0:00:04]} 88. Rf5+ {[%clk 0:00:15]}  Kb6 {[%clk 0:00:04]} 89. Rf6+ {[%clk 0:00:15]}  Ka7 {[%clk 0:00:04]} 90. Rf7+ {[%clk 0:00:16]}  Kb6 {[%clk 0:00:04]} 91. Rf6+ {[%clk 0:00:16]}  Kb7 {[%clk 0:00:04]} 92. Rf7+ {[%clk 0:00:16]}  Bc7 {[%clk 0:00:05]} 93. Rf5 {[%clk 0:00:16]}  Kc6 {[%clk 0:00:04]} 94. Rb5 {[%clk 0:00:16]}  Bd6 {[%clk 0:00:04]} 95. Rf5 {[%clk 0:00:15]}  Rb4+ {[%clk 0:00:04]} 96. Kc3 {[%clk 0:00:14]}  Rxa4 {[%clk 0:00:04]} 97. Kb3 {[%clk 0:00:14]}  Rh4 {[%clk 0:00:04]} 98. Kc3 {[%clk 0:00:14]}  Bc5 {[%clk 0:00:04]} 99. Kd3 {[%clk 0:00:15]}  Kb5 {[%clk 0:00:05]} 100. Kc3 {[%clk 0:00:15]}  Rh3+ {[%clk 0:00:05]} 101. Kd2 {[%clk 0:00:15]}  Kc4 {[%clk 0:00:05]} 102. Rf7 {[%clk 0:00:15]}  Rh2+ {[%clk 0:00:05]} 103. Ke1 {[%clk 0:00:13]}  Kd3 {[%clk 0:00:05]} 104. Rd7+ {[%clk 0:00:13]}  Bd4 {[%clk 0:00:05]} 105. Kf1 {[%clk 0:00:13]}  Rf2+ {[%clk 0:00:05]} 106. Ke1 {[%clk 0:00:13]}  Rf8 {[%clk 0:00:05]} 107. Rd6 {[%clk 0:00:11]}  Rg8 {[%clk 0:00:05]} 0-1


[Site "https://www.chess.com"]

[Event "Titled Tuesday Blitz September 13 Early 2022"]
[White "Sjugirov, Sanan"]
[Black "Ezat, Mohamed"]
[WhiteFideId "4189302"]
[BlackFideId "10600906"]
[WhiteElo "2940"]
[BlackElo "2522"]
[Result "0-1"]
[Round "01"]
[TimeControl "180+1"]
[Date "2022.09.13"]
[WhiteClock "0:00:12"]
[BlackClock "0:00:52"]

1. e4 {[%clk 0:03:00]}  c6 {[%clk 0:02:57]} 2. d4 {[%clk 0:03:00]}  d5 {[%clk 0:02:58]} 3. e5 {[%clk 0:03:00]}  c5 {[%clk 0:02:57]} 4. Nf3 {[%clk 0:02:58]}  Bg4 {[%clk 0:02:54]} 5. dxc5 {[%clk 0:02:50]}  Bxf3 {[%clk 0:02:53]} 6. Qxf3 {[%clk 0:02:49]}  Nc6 {[%clk 0:02:53]} 7. Bb5 {[%clk 0:02:44]}  e6 {[%clk 0:02:51]} 8. b4 {[%clk 0:02:22]}  a5 {[%clk 0:02:49]} 9. c3 {[%clk 0:02:19]}  Ne7 {[%clk 0:02:46]} 10. O-O {[%clk 0:02:17]}  Ng6 {[%clk 0:02:46]} 11. Qe2 {[%clk 0:02:03]}  Be7 {[%clk 0:02:45]} 12. Nd2 {[%clk 0:01:56]}  O-O {[%clk 0:02:40]} 13. Bxc6 {[%clk 0:01:56]}  bxc6 {[%clk 0:02:40]} 14. Nf3 {[%clk 0:01:56]}  Qb8 {[%clk 0:02:38]} 15. Bd2 {[%clk 0:01:53]}  axb4 {[%clk 0:02:36]} 16. cxb4 {[%clk 0:01:54]}  Ra3 {[%clk 0:02:36]} 17. Rfe1 {[%clk 0:01:44]}  Qb7 {[%clk 0:02:21]} 18. Bc1 {[%clk 0:01:32]}  Ra4 {[%clk 0:02:20]} 19. a3 {[%clk 0:01:26]}  Rb8 {[%clk 0:02:18]} 20. Ra2 {[%clk 0:01:21]}  Qa8 {[%clk 0:02:08]} 21. Rc2 {[%clk 0:01:17]}  h6 {[%clk 0:02:02]} 22. g3 {[%clk 0:01:15]}  Qb7 {[%clk 0:01:56]} 23. h4 {[%clk 0:01:13]}  Qd7 {[%clk 0:01:54]} 24. h5 {[%clk 0:01:02]}  Nf8 {[%clk 0:01:52]} 25. Nd4 {[%clk 0:01:00]}  Nh7 {[%clk 0:01:46]} 26. f4 {[%clk 0:00:50]}  Re8 {[%clk 0:01:41]} 27. Kg2 {[%clk 0:00:48]}  Raa8 {[%clk 0:01:36]} 28. Qd3 {[%clk 0:00:47]}  f5 {[%clk 0:01:31]} 29. Be3 {[%clk 0:00:34]}  Ra4 {[%clk 0:01:23]} 30. Rb1 {[%clk 0:00:32]}  Rea8 {[%clk 0:01:22]} 31. Rb3 {[%clk 0:00:32]}  Qe8 {[%clk 0:01:15]} 32. Nxe6 {[%clk 0:00:24]}  Qxh5 {[%clk 0:01:14]} 33. Nd4 {[%clk 0:00:24]}  Rf8 {[%clk 0:01:06]} 34. Nxc6 {[%clk 0:00:23]}  Bh4 {[%clk 0:01:06]} 35. Qxd5+ {[%clk 0:00:22]}  Kh8 {[%clk 0:01:05]} 36. gxh4 {[%clk 0:00:17]}  Qg4+ {[%clk 0:01:03]} 37. Kf1 {[%clk 0:00:14]}  Raa8 {[%clk 0:00:52]} 38. Qg2 {[%clk 0:00:12]}  Qd1+ {[%clk 0:00:52]} 0-1


[Site "https://www.chess.com"]

[Event "Titled Tuesday Blitz September 13 Early 2022"]
[White "Tang, Andrew"]
[Black "Astafurov, Arseniy"]
[WhiteFideId "2059630"]
[BlackFideId "24175218"]
[WhiteElo "2924"]
[BlackElo "2516"]
[Result "1-0"]
[Round "01"]
[TimeControl "180+1"]
[Date "2022.09.13"]
[WhiteClock "0:00:06"]
[BlackClock "0:00:06"]

1. d4 {[%clk 0:03:00]}  Nf6 {[%clk 0:02:59]} 2. c4 {[%clk 0:03:00]}  c5 {[%clk 0:02:58]} 3. d5 {[%clk 0:03:00]}  b5 {[%clk 0:02:58]} 4. cxb5 {[%clk 0:03:01]}  a6 {[%clk 0:02:59]} 5. e3 {[%clk 0:03:01]}  e6 {[%clk 0:02:59]} 6. Nc3 {[%clk 0:03:01]}  Bb7 {[%clk 0:02:57]} 7. e4 {[%clk 0:03:00]}  exd5 {[%clk 0:02:44]} 8. exd5 {[%clk 0:03:01]}  Bd6 {[%clk 0:02:44]} 9. Be2 {[%clk 0:01:37]}  O-O {[%clk 0:02:37]} 10. Nf3 {[%clk 0:01:35]}  Re8 {[%clk 0:02:27]} 11. O-O {[%clk 0:01:34]}  Bf8 {[%clk 0:02:04]} 12. Bg5 {[%clk 0:01:22]}  d6 {[%clk 0:02:05]} 13. a4 {[%clk 0:01:15]}  Nbd7 {[%clk 0:02:03]} 14. Nd2 {[%clk 0:01:08]}  h6 {[%clk 0:01:43]} 15. Bh4 {[%clk 0:01:07]}  g5 {[%clk 0:01:30]} 16. Bg3 {[%clk 0:01:06]}  Nxd5 {[%clk 0:01:30]} 17. Nxd5 {[%clk 0:00:57]}  Bxd5 {[%clk 0:01:31]} 18. bxa6 {[%clk 0:00:51]}  Nf6 {[%clk 0:01:17]} 19. Bb5 {[%clk 0:00:47]}  Re6 {[%clk 0:01:11]} 20. Nc4 {[%clk 0:00:45]}  Be4 {[%clk 0:00:56]} 21. Re1 {[%clk 0:00:34]}  d5 {[%clk 0:00:56]} 22. Nd2 {[%clk 0:00:34]}  Bf5 {[%clk 0:00:54]} 23. Qf3 {[%clk 0:00:32]}  Bg4 {[%clk 0:00:37]} 24. Qc3 {[%clk 0:00:31]}  c4 {[%clk 0:00:29]} 25. h3 {[%clk 0:00:30]}  Bf5 {[%clk 0:00:28]} 26. Nf3 {[%clk 0:00:28]}  Bg7 {[%clk 0:00:26]} 27. Nd4 {[%clk 0:00:28]}  Rxe1+ {[%clk 0:00:27]} 28. Qxe1 {[%clk 0:00:26]}  Bd3 {[%clk 0:00:24]} 29. Nc6 {[%clk 0:00:24]}  Qb6 {[%clk 0:00:22]} 30. Be5 {[%clk 0:00:24]}  Re8 {[%clk 0:00:20]} 31. a7 {[%clk 0:00:21]}  Ra8 {[%clk 0:00:19]} 32. Bd4 {[%clk 0:00:17]}  Qb7 {[%clk 0:00:19]} 33. Qe3 {[%clk 0:00:12]}  Ne4 {[%clk 0:00:19]} 34. Re1 {[%clk 0:00:11]}  Bxd4 {[%clk 0:00:17]} 35. Qxd4 {[%clk 0:00:12]}  Qc7 {[%clk 0:00:16]} 36. f3 {[%clk 0:00:10]}  Qg3 {[%clk 0:00:15]} 37. Qe3 {[%clk 0:00:10]}  Nf6 {[%clk 0:00:14]} 38. Ne7+ {[%clk 0:00:09]}  Kh8 {[%clk 0:00:13]} 39. Bc6 {[%clk 0:00:09]}  Rxa7 {[%clk 0:00:12]} 40. Nxd5 {[%clk 0:00:06]}  Nxd5 {[%clk 0:00:09]} 41. Bxd5 {[%clk 0:00:07]}  Kg7 {[%clk 0:00:08]} 42. Qd4+ {[%clk 0:00:07]}  f6 {[%clk 0:00:06]} 43. Qxa7+ {[%clk 0:00:06]} 1-0


[Site "https://www.chess.com"]

[Event "Titled Tuesday Blitz September 13 Early 2022"]
[White "Tari, Aryan"]
[Black "Padmini, Rout"]
[WhiteFideId "1510045"]
[BlackFideId "5029295"]
[WhiteElo "2906"]
[BlackElo "2507"]
[Result "1-0"]
[Round "01"]
[TimeControl "180+1"]
[Date "2022.09.13"]
[WhiteClock "0:00:33"]
[BlackClock "0:00:07"]

1. e4 {[%clk 0:02:59]}  e5 {[%clk 0:02:58]} 2. Nf3 {[%clk 0:02:48]}  Nc6 {[%clk 0:02:55]} 3. Bb5 {[%clk 0:02:44]}  Nf6 {[%clk 0:02:52]} 4. d3 {[%clk 0:02:42]}  Bc5 {[%clk 0:02:51]} 5. Bxc6 {[%clk 0:02:35]}  dxc6 {[%clk 0:02:47]} 6. Nbd2 {[%clk 0:02:35]}  Qe7 {[%clk 0:02:43]} 7. a3 {[%clk 0:02:31]}  Nd7 {[%clk 0:02:23]} 8. b4 {[%clk 0:02:27]}  Bd6 {[%clk 0:02:22]} 9. Nc4 {[%clk 0:02:26]}  O-O {[%clk 0:02:17]} 10. Ne3 {[%clk 0:02:21]}  g6 {[%clk 0:02:11]} 11. O-O {[%clk 0:02:18]}  f5 {[%clk 0:01:44]} 12. exf5 {[%clk 0:01:53]}  gxf5 {[%clk 0:01:45]} 13. Bb2 {[%clk 0:01:43]}  Nf6 {[%clk 0:01:16]} 14. Nc4 {[%clk 0:01:24]}  e4 {[%clk 0:01:08]} 15. Re1 {[%clk 0:01:21]}  b5 {[%clk 0:00:15]} 16. dxe4 {[%clk 0:01:07]}  fxe4 {[%clk 0:00:14]} 17. Nxd6 {[%clk 0:01:05]}  cxd6 {[%clk 0:00:15]} 18. Qd4 {[%clk 0:00:53]}  Bf5 {[%clk 0:00:15]} 19. Nh4 {[%clk 0:00:49]}  Bd7 {[%clk 0:00:13]} 20. Re3 {[%clk 0:00:49]}  d5 {[%clk 0:00:11]} 21. Rae1 {[%clk 0:00:46]}  Kh8 {[%clk 0:00:11]} 22. Rg3 {[%clk 0:00:42]}  Qd6 {[%clk 0:00:10]} 23. f3 {[%clk 0:00:33]}  Rae8 {[%clk 0:00:07]} 24. fxe4 {[%clk 0:00:33]}  Rxe4 {[%clk 0:00:07]} 25. Rxe4 {[%clk 0:00:33]} 1-0


[Site "https://www.chess.com"]

[Event "Titled Tuesday Blitz September 13 Early 2022"]
[White "Ter-Sahakyan, Samvel"]
[Black "Dushyant Sharma"]
[WhiteFideId "13302531"]
[BlackFideId "25065130"]
[WhiteElo "2877"]
[BlackElo "2494"]
[Result "1-0"]
[Round "01"]
[TimeControl "180+1"]
[Date "2022.09.13"]
[WhiteClock "0:00:55"]
[BlackClock "0:00:06"]

1. e4 {[%clk 0:02:59]}  e5 {[%clk 0:02:56]} 2. Nf3 {[%clk 0:02:58]}  Nc6 {[%clk 0:02:56]} 3. Bb5 {[%clk 0:02:59]}  a6 {[%clk 0:02:56]} 4. Ba4 {[%clk 0:02:59]}  f5 {[%clk 0:02:55]} 5. d4 {[%clk 0:02:55]}  exd4 {[%clk 0:02:54]} 6. e5 {[%clk 0:02:54]}  b5 {[%clk 0:02:51]} 7. Bb3 {[%clk 0:02:54]}  Bb7 {[%clk 0:02:46]} 8. c3 {[%clk 0:02:53]}  d6 {[%clk 0:02:01]} 9. e6 {[%clk 0:02:45]}  Ne5 {[%clk 0:01:33]} 10. Ng5 {[%clk 0:02:08]}  Nh6 {[%clk 0:00:51]} 11. cxd4 {[%clk 0:02:03]}  Nc4 {[%clk 0:00:51]} 12. O-O {[%clk 0:01:45]}  Qf6 {[%clk 0:00:31]} 13. a4 {[%clk 0:01:33]}  Nxb2 {[%clk 0:00:19]} 14. Qc2 {[%clk 0:01:15]}  Nxa4 {[%clk 0:00:15]} 15. Bxa4 {[%clk 0:01:07]}  bxa4 {[%clk 0:00:14]} 16. Qxa4+ {[%clk 0:01:07]}  c6 {[%clk 0:00:13]} 17. Nc3 {[%clk 0:01:05]}  Be7 {[%clk 0:00:12]} 18. Rb1 {[%clk 0:01:05]}  O-O {[%clk 0:00:10]} 19. Rxb7 {[%clk 0:01:05]}  Rfe8 {[%clk 0:00:10]} 20. Qxc6 {[%clk 0:00:58]}  Qxd4 {[%clk 0:00:06]} 21. Rxe7 {[%clk 0:00:55]} 1-0


[Site "https://www.chess.com"]

[Event "Titled Tuesday Blitz September 13 Early 2022"]
[White "Terry, Renato"]
[Black "Lehtosaari, Mauri"]
[WhiteFideId "3803457"]
[BlackFideId "501999"]
[WhiteElo "2930"]
[BlackElo "2518"]
[Result "1-0"]
[Round "01"]
[TimeControl "180+1"]
[Date "2022.09.13"]
[WhiteClock "0:02:36"]
[BlackClock "0:00:26"]

1. e4 {[%clk 0:03:00]}  c5 {[%clk 0:02:54]} 2. Nf3 {[%clk 0:03:01]}  e6 {[%clk 0:02:55]} 3. Nc3 {[%clk 0:03:00]}  Nc6 {[%clk 0:02:52]} 4. Bb5 {[%clk 0:02:59]}  Nge7 {[%clk 0:02:52]} 5. O-O {[%clk 0:03:00]}  a6 {[%clk 0:02:52]} 6. Bxc6 {[%clk 0:03:00]}  Nxc6 {[%clk 0:02:53]} 7. d4 {[%clk 0:03:01]}  cxd4 {[%clk 0:02:52]} 8. Nxd4 {[%clk 0:03:02]}  Qc7 {[%clk 0:02:39]} 9. Nxc6 {[%clk 0:03:00]}  bxc6 {[%clk 0:02:34]} 10. Qg4 {[%clk 0:02:58]}  h5 {[%clk 0:02:24]} 11. Qh4 {[%clk 0:02:57]}  Be7 {[%clk 0:02:20]} 12. Bg5 {[%clk 0:02:57]}  Qd8 {[%clk 0:02:20]} 13. Bxe7 {[%clk 0:02:55]}  Qxe7 {[%clk 0:02:21]} 14. Qg3 {[%clk 0:02:55]}  f6 {[%clk 0:01:21]} 15. e5 {[%clk 0:02:52]}  f5 {[%clk 0:01:16]} 16. h4 {[%clk 0:02:50]}  c5 {[%clk 0:01:12]} 17. Ne2 {[%clk 0:02:49]}  Bb7 {[%clk 0:01:07]} 18. Nf4 {[%clk 0:02:49]}  Rh6 {[%clk 0:01:05]} 19. Rfd1 {[%clk 0:02:49]}  Bc6 {[%clk 0:01:02]} 20. Rd6 {[%clk 0:02:49]}  Rb8 {[%clk 0:01:02]} 21. b3 {[%clk 0:02:49]}  Rb4 {[%clk 0:01:02]} 22. c4 {[%clk 0:02:49]}  a5 {[%clk 0:01:02]} 23. Nd3 {[%clk 0:02:48]}  Rb8 {[%clk 0:01:01]} 24. Nxc5 {[%clk 0:02:48]}  Qf7 {[%clk 0:01:00]} 25. Qf4 {[%clk 0:02:45]}  Rg6 {[%clk 0:00:59]} 26. f3 {[%clk 0:02:46]}  a4 {[%clk 0:00:46]} 27. Rad1 {[%clk 0:02:43]}  axb3 {[%clk 0:00:44]} 28. axb3 {[%clk 0:02:44]}  Kf8 {[%clk 0:00:44]} 29. Nxd7+ {[%clk 0:02:41]}  Bxd7 {[%clk 0:00:41]} 30. Rxd7 {[%clk 0:02:42]}  Qe8 {[%clk 0:00:40]} 31. Qd2 {[%clk 0:02:36]}  Kg8 {[%clk 0:00:26]} 32. Rd8 {[%clk 0:02:36]} 1-0


[Site "https://www.chess.com"]

[Event "Titled Tuesday Blitz September 13 Early 2022"]
[White "Tifferet, Shaked"]
[Black "Dubov, Daniil"]
[WhiteFideId "2811529"]
[BlackFideId "24126055"]
[WhiteElo "2537"]
[BlackElo "3026"]
[Result "0-1"]
[Round "01"]
[TimeControl "180+1"]
[Date "2022.09.13"]
[WhiteClock "0:00:08"]
[BlackClock "0:00:47"]

1. e4 {[%clk 0:02:59]}  c5 {[%clk 0:02:58]} 2. Nf3 {[%clk 0:02:58]}  d6 {[%clk 0:02:59]} 3. d4 {[%clk 0:02:57]}  cxd4 {[%clk 0:03:00]} 4. Nxd4 {[%clk 0:02:57]}  Nf6 {[%clk 0:03:00]} 5. Nc3 {[%clk 0:02:58]}  a6 {[%clk 0:03:00]} 6. a3 {[%clk 0:02:51]}  Nc6 {[%clk 0:02:57]} 7. Nb3 {[%clk 0:02:35]}  g6 {[%clk 0:02:55]} 8. Bg5 {[%clk 0:02:29]}  Bg7 {[%clk 0:02:54]} 9. Qd2 {[%clk 0:02:30]}  Be6 {[%clk 0:02:52]} 10. Bh6 {[%clk 0:02:23]}  Bxh6 {[%clk 0:02:52]} 11. Qxh6 {[%clk 0:02:24]}  Qb6 {[%clk 0:02:52]} 12. Na4 {[%clk 0:02:05]}  Qxf2+ {[%clk 0:02:48]} 13. Kxf2 {[%clk 0:02:06]}  Ng4+ {[%clk 0:02:48]} 14. Kg3 {[%clk 0:02:02]}  Nxh6 {[%clk 0:02:49]} 15. Nb6 {[%clk 0:02:02]}  Rd8 {[%clk 0:02:46]} 16. Be2 {[%clk 0:01:59]}  O-O {[%clk 0:02:45]} 17. Bf3 {[%clk 0:01:57]}  f5 {[%clk 0:02:37]} 18. Rhe1 {[%clk 0:01:49]}  f4+ {[%clk 0:02:37]} 19. Kf2 {[%clk 0:01:45]}  Nf7 {[%clk 0:02:38]} 20. c4 {[%clk 0:01:32]}  Nfe5 {[%clk 0:02:37]} 21. Be2 {[%clk 0:01:26]}  g5 {[%clk 0:02:36]} 22. Rad1 {[%clk 0:01:14]}  g4 {[%clk 0:02:27]} 23. Nc1 {[%clk 0:01:01]}  f3 {[%clk 0:02:22]} 24. gxf3 {[%clk 0:01:01]}  Nxf3 {[%clk 0:02:19]} 25. Bxf3 {[%clk 0:00:58]}  Rxf3+ {[%clk 0:02:20]} 26. Kg2 {[%clk 0:00:50]}  Ne5 {[%clk 0:02:20]} 27. c5 {[%clk 0:00:45]}  Rdf8 {[%clk 0:02:13]} 28. cxd6 {[%clk 0:00:27]}  Rf2+ {[%clk 0:02:12]} 29. Kg1 {[%clk 0:00:27]}  exd6 {[%clk 0:01:52]} 30. Rxd6 {[%clk 0:00:21]}  Rxb2 {[%clk 0:01:49]} 31. Re2 {[%clk 0:00:21]}  Rb1 {[%clk 0:01:25]} 32. Rxe6 {[%clk 0:00:21]}  Nd3 {[%clk 0:01:14]} 33. Rc2 {[%clk 0:00:16]}  Nxc1 {[%clk 0:01:14]} 34. Kg2 {[%clk 0:00:15]}  Nd3 {[%clk 0:01:10]} 35. Kg3 {[%clk 0:00:14]}  Nf4 {[%clk 0:00:51]} 36. Re7 {[%clk 0:00:14]}  Rg1+ {[%clk 0:00:50]} 37. Kf2 {[%clk 0:00:09]}  Rg2+ {[%clk 0:00:50]} 38. Ke3 {[%clk 0:00:08]}  Rxc2 {[%clk 0:00:50]} 39. Nd7 {[%clk 0:00:08]}  Re2+ {[%clk 0:00:49]} 40. Kd4 {[%clk 0:00:08]}  Rd2+ {[%clk 0:00:49]} 41. Ke5 {[%clk 0:00:09]}  Ng6+ {[%clk 0:00:48]} 42. Ke6 {[%clk 0:00:08]}  Nxe7 {[%clk 0:00:48]} 43. Nf6+ {[%clk 0:00:08]}  Rxf6+ {[%clk 0:00:47]} 0-1


[Site "https://www.chess.com"]

[Event "Titled Tuesday Blitz September 13 Early 2022"]
[White "Trent, Lawrence"]
[Black "Le, Tuan Minh"]
[WhiteFideId "408638"]
[BlackFideId "12401153"]
[WhiteElo "2538"]
[BlackElo "3061"]
[Result "0-1"]
[Round "01"]
[TimeControl "180+1"]
[Date "2022.09.13"]
[WhiteClock "0:00:04"]
[BlackClock "0:00:09"]

1. e4 {[%clk 0:02:58]}  c5 {[%clk 0:02:57]} 2. Nc3 {[%clk 0:02:58]}  Nf6 {[%clk 0:02:58]} 3. e5 {[%clk 0:02:54]}  Ng8 {[%clk 0:02:58]} 4. Nf3 {[%clk 0:02:53]}  d6 {[%clk 0:02:58]} 5. Bb5+ {[%clk 0:02:53]}  Nc6 {[%clk 0:02:57]} 6. O-O {[%clk 0:02:51]}  e6 {[%clk 0:02:56]} 7. d4 {[%clk 0:02:48]}  d5 {[%clk 0:02:53]} 8. Ne2 {[%clk 0:02:44]}  cxd4 {[%clk 0:02:52]} 9. Nexd4 {[%clk 0:02:43]}  Bd7 {[%clk 0:02:52]} 10. Nxc6 {[%clk 0:02:40]}  bxc6 {[%clk 0:02:51]} 11. Bd3 {[%clk 0:02:39]}  Ne7 {[%clk 0:02:46]} 12. c4 {[%clk 0:02:36]}  Ng6 {[%clk 0:02:42]} 13. h4 {[%clk 0:02:31]}  Nxh4 {[%clk 0:02:12]} 14. Ng5 {[%clk 0:02:31]}  Ng6 {[%clk 0:01:52]} 15. Re1 {[%clk 0:02:15]}  Be7 {[%clk 0:01:49]} 16. Qh5 {[%clk 0:02:14]}  Bxg5 {[%clk 0:01:49]} 17. Bxg5 {[%clk 0:02:14]}  Qb6 {[%clk 0:01:42]} 18. b3 {[%clk 0:02:12]}  c5 {[%clk 0:00:50]} 19. f4 {[%clk 0:01:44]}  Ne7 {[%clk 0:00:32]} 20. Qh4 {[%clk 0:01:09]}  dxc4 {[%clk 0:00:24]} 21. Bxe7 {[%clk 0:00:54]}  cxd3 {[%clk 0:00:24]} 22. Bd6 {[%clk 0:00:54]}  f6 {[%clk 0:00:20]} 23. Qf2 {[%clk 0:00:44]}  Rc8 {[%clk 0:00:16]} 24. Rec1 {[%clk 0:00:36]}  c4 {[%clk 0:00:16]} 25. bxc4 {[%clk 0:00:32]}  Qxf2+ {[%clk 0:00:14]} 26. Kxf2 {[%clk 0:00:31]}  Ba4 {[%clk 0:00:15]} 27. Rcb1 {[%clk 0:00:20]}  Kf7 {[%clk 0:00:09]} 28. Ke3 {[%clk 0:00:19]}  Rxc4 {[%clk 0:00:08]} 29. Rb7+ {[%clk 0:00:19]}  Kg6 {[%clk 0:00:08]} 30. Rxa7 {[%clk 0:00:19]}  Bc6 {[%clk 0:00:08]} 31. g3 {[%clk 0:00:15]}  Be4 {[%clk 0:00:08]} 32. Rc7 {[%clk 0:00:14]}  Rxc7 {[%clk 0:00:07]} 33. Bxc7 {[%clk 0:00:14]}  f5 {[%clk 0:00:07]} 34. a4 {[%clk 0:00:14]}  Rc8 {[%clk 0:00:07]} 35. Rc1 {[%clk 0:00:12]}  Kh5 {[%clk 0:00:06]} 36. a5 {[%clk 0:00:12]}  Kg4 {[%clk 0:00:07]} 37. a6 {[%clk 0:00:06]}  Kxg3 {[%clk 0:00:07]} 38. Rg1+ {[%clk 0:00:05]}  Kh2 {[%clk 0:00:05]} 39. Rxg7 {[%clk 0:00:05]}  h5 {[%clk 0:00:06]} 40. a7 {[%clk 0:00:02]}  h4 {[%clk 0:00:07]} 41. Kd2 {[%clk 0:00:03]}  h3 {[%clk 0:00:07]} 42. Rh7 {[%clk 0:00:01]}  Kg3 {[%clk 0:00:07]} 43. Ke3 {[%clk 0:00:01]}  h2 {[%clk 0:00:07]} 44. Rg7+ {[%clk 0:00:02]}  Kh3 {[%clk 0:00:07]} 45. Rh7+ {[%clk 0:00:03]}  Kg2 {[%clk 0:00:08]} 46. Rg7+ {[%clk 0:00:04]}  Kf1 {[%clk 0:00:09]} 0-1


[Site "https://www.chess.com"]